[Event "Titled Tuesday Blitz March 28 Late 2023"]
[White "Domingo Nunez, Ruben"]
[Black "Eggleston, Thomas A"]
[WhiteFideId "22245570"]
[BlackFideId "412139"]
[WhiteElo "2404"]
[BlackElo "2155"]
[Result "1/2-1/2"]
[Round "01"]
[TimeControl "180+2"]
[Date "2023.03.28"]
[WhiteClock "0:00:26"]
[BlackClock "0:00:03"]

1. b3 {[%clk 0:03:00]}  e5 {[%clk 0:02:57]} 2. Bb2 {[%clk 0:03:01]}  d6 {[%clk 0:02:57]} 3. e3 {[%clk 0:03:02]}  f5 {[%clk 0:02:57]} 4. c4 {[%clk 0:03:03]}  Nf6 {[%clk 0:02:57]} 5. d4 {[%clk 0:03:04]}  e4 {[%clk 0:02:56]} 6. d5 {[%clk 0:03:03]}  Be7 {[%clk 0:02:53]} 7. Nc3 {[%clk 0:03:03]}  O-O {[%clk 0:02:53]} 8. Nge2 {[%clk 0:03:04]}  a5 {[%clk 0:02:52]} 9. Nd4 {[%clk 0:03:03]}  Na6 {[%clk 0:02:51]} 10. a3 {[%clk 0:03:00]}  Bd7 {[%clk 0:02:48]} 11. Be2 {[%clk 0:03:00]}  c6 {[%clk 0:02:45]} 12. h3 {[%clk 0:02:44]}  Rc8 {[%clk 0:02:28]} 13. Rc1 {[%clk 0:02:40]}  h6 {[%clk 0:02:08]} 14. g4 {[%clk 0:02:39]}  fxg4 {[%clk 0:02:00]} 15. hxg4 {[%clk 0:02:40]}  cxd5 {[%clk 0:01:53]} 16. cxd5 {[%clk 0:02:40]}  Re8 {[%clk 0:01:46]} 17. Rg1 {[%clk 0:02:24]}  Bf8 {[%clk 0:01:25]} 18. g5 {[%clk 0:02:23]}  hxg5 {[%clk 0:01:24]} 19. Rxg5 {[%clk 0:02:24]}  Nc5 {[%clk 0:01:16]} 20. b4 {[%clk 0:02:23]}  axb4 {[%clk 0:01:15]} 21. axb4 {[%clk 0:02:24]}  Na6 {[%clk 0:01:04]} 22. Qb3 {[%clk 0:02:24]}  Qb6 {[%clk 0:00:54]} 23. Ncb5 {[%clk 0:01:57]}  Rxc1+ {[%clk 0:00:52]} 24. Bxc1 {[%clk 0:01:58]}  Re5 {[%clk 0:00:49]} 25. Rg6 {[%clk 0:01:49]}  Be8 {[%clk 0:00:44]} 26. Rg3 {[%clk 0:01:45]}  Bf7 {[%clk 0:00:43]} 27. Bc4 {[%clk 0:01:44]}  Bxd5 {[%clk 0:00:32]} 28. Bxd5+ {[%clk 0:01:42]}  Nxd5 {[%clk 0:00:28]} 29. Bb2 {[%clk 0:01:28]}  Nxb4 {[%clk 0:00:26]} 30. Ke2 {[%clk 0:01:29]}  Be7 {[%clk 0:00:21]} 31. Rg6 {[%clk 0:01:28]}  Bf6 {[%clk 0:00:21]} 32. Qc4 {[%clk 0:01:26]}  Kh7 {[%clk 0:00:20]} 33. Rg4 {[%clk 0:01:25]}  Qc5 {[%clk 0:00:19]} 34. Qb3 {[%clk 0:01:11]}  Nd3 {[%clk 0:00:18]} 35. Ba3 {[%clk 0:01:07]}  Nc1+ {[%clk 0:00:14]} 36. Bxc1 {[%clk 0:01:07]}  Qxc1 {[%clk 0:00:14]} 37. Nc2 {[%clk 0:00:46]}  Qh1 {[%clk 0:00:13]} 38. Rg3 {[%clk 0:00:46]}  Qh5+ {[%clk 0:00:13]} 39. Kd2 {[%clk 0:00:44]}  Rg5 {[%clk 0:00:13]} 40. Rxg5 {[%clk 0:00:40]}  Qxg5 {[%clk 0:00:13]} 41. Nxd6 {[%clk 0:00:40]}  Bc3+ {[%clk 0:00:13]} 42. Ke2 {[%clk 0:00:28]}  Qg4+ {[%clk 0:00:13]} 43. Kf1 {[%clk 0:00:29]}  Qh3+ {[%clk 0:00:10]} 44. Ke2 {[%clk 0:00:28]}  Qg4+ {[%clk 0:00:10]} 45. Kf1 {[%clk 0:00:28]}  Qh3+ {[%clk 0:00:09]} 46. Ke2 {[%clk 0:00:26]}  Qf3+ {[%clk 0:00:07]} 47. Kf1 {[%clk 0:00:26]}  Qh1+ {[%clk 0:00:04]} 48. Ke2 {[%clk 0:00:26]}  Qf3+ {[%clk 0:00:04]} 49. Kf1 {[%clk 0:00:27]}  Qh1+ {[%clk 0:00:04]} 50. Ke2 {[%clk 0:00:26]}  Qf3+ {[%clk 0:00:03]} 1/2-1/2


[Site "https://www.chess.com"]

[Event "Titled Tuesday Blitz March 28 Late 2023"]
[White "Popov, Mikhail"]
[Black "Le, Nguyen Khoi Nguyen"]
[WhiteFideId "4146182"]
[BlackFideId "12402699"]
[WhiteElo "2270"]
[BlackElo "1829"]
[Result "1-0"]
[Round "01"]
[TimeControl "180+2"]
[Date "2023.03.28"]
[WhiteClock "0:00:08"]
[BlackClock "0:00:03"]

1. d4 {[%clk 0:02:54]}  Nf6 {[%clk 0:02:59]} 2. Nf3 {[%clk 0:02:50]}  e6 {[%clk 0:02:59]} 3. Bg5 {[%clk 0:02:47]}  Ne4 {[%clk 0:02:56]} 4. Bh4 {[%clk 0:02:46]}  g5 {[%clk 0:02:44]} 5. Bg3 {[%clk 0:02:43]}  h5 {[%clk 0:02:23]} 6. h4 {[%clk 0:02:09]}  g4 {[%clk 0:02:16]} 7. Nfd2 {[%clk 0:02:07]}  Nxg3 {[%clk 0:02:14]} 8. fxg3 {[%clk 0:02:08]}  d5 {[%clk 0:02:11]} 9. e4 {[%clk 0:02:07]}  Bg7 {[%clk 0:01:52]} 10. c3 {[%clk 0:02:06]}  c5 {[%clk 0:01:44]} 11. dxc5 {[%clk 0:02:02]}  Qc7 {[%clk 0:01:41]} 12. Bb5+ {[%clk 0:01:50]}  Nd7 {[%clk 0:01:18]} 13. Qe2 {[%clk 0:01:42]}  d4 {[%clk 0:00:52]} 14. O-O {[%clk 0:01:31]}  Qxg3 {[%clk 0:00:50]} 15. Qf2 {[%clk 0:01:19]}  Be5 {[%clk 0:00:26]} 16. Qxg3 {[%clk 0:01:08]}  Bxg3 {[%clk 0:00:26]} 17. cxd4 {[%clk 0:01:08]}  Bxh4 {[%clk 0:00:24]} 18. Nc3 {[%clk 0:01:08]}  a6 {[%clk 0:00:24]} 19. Ba4 {[%clk 0:01:07]}  Bg5 {[%clk 0:00:22]} 20. Nc4 {[%clk 0:01:07]}  Ke7 {[%clk 0:00:21]} 21. e5 {[%clk 0:00:56]}  b5 {[%clk 0:00:20]} 22. cxb6 {[%clk 0:00:55]}  Bb7 {[%clk 0:00:21]} 23. Bxd7 {[%clk 0:00:49]}  h4 {[%clk 0:00:17]} 24. Ba4 {[%clk 0:00:19]}  h3 {[%clk 0:00:15]} 25. Rxf7+ {[%clk 0:00:11]}  Kxf7 {[%clk 0:00:12]} 26. Nd6+ {[%clk 0:00:12]}  Kg6 {[%clk 0:00:12]} 27. Nxb7 {[%clk 0:00:13]}  Be3+ {[%clk 0:00:12]} 28. Kh2 {[%clk 0:00:10]}  Bxd4 {[%clk 0:00:09]} 29. Re1 {[%clk 0:00:10]}  Rab8 {[%clk 0:00:08]} 30. Nd6 {[%clk 0:00:09]}  Rxb6 {[%clk 0:00:09]} 31. Bb3 {[%clk 0:00:08]}  Bxe5+ {[%clk 0:00:06]} 32. Rxe5 {[%clk 0:00:09]}  Rxd6 {[%clk 0:00:05]} 33. Ne4 {[%clk 0:00:05]}  Rb6 {[%clk 0:00:04]} 34. Rg5+ {[%clk 0:00:05]}  Kf7 {[%clk 0:00:04]} 35. Rxg4 {[%clk 0:00:06]}  hxg2+ {[%clk 0:00:03]} 36. Kxg2 {[%clk 0:00:07]}  Rd8 {[%clk 0:00:03]} 37. Rf4+ {[%clk 0:00:06]}  Ke7 {[%clk 0:00:03]} 38. Rf2 {[%clk 0:00:06]}  Rc6 {[%clk 0:00:03]} 39. Re2 {[%clk 0:00:06]}  Rd4 {[%clk 0:00:03]} 40. Ng3 {[%clk 0:00:06]}  Rdd6 {[%clk 0:00:03]} 41. Nf5+ {[%clk 0:00:06]}  Kd7 {[%clk 0:00:03]} 42. Nxd6 {[%clk 0:00:07]}  Kxd6 {[%clk 0:00:04]} 43. Rxe6+ {[%clk 0:00:07]}  Kc5 {[%clk 0:00:03]} 44. Rxc6+ {[%clk 0:00:08]} 1-0


[Site "https://www.chess.com"]

[Event "Titled Tuesday Blitz March 28 Late 2023"]
[White "Fernandez Siles, Luis"]
[Black "Manelyuk, Daniil"]
[WhiteFideId "2209420"]
[BlackFideId "44173920"]
[WhiteElo "2186"]
[BlackElo "2259"]
[Result "0-1"]
[Round "01"]
[TimeControl "180+2"]
[Date "2023.03.28"]
[WhiteClock "0:00:09"]
[BlackClock "0:00:46"]

1. d4 {[%clk 0:02:59]}  Nf6 {[%clk 0:02:55]} 2. c4 {[%clk 0:02:59]}  c5 {[%clk 0:02:55]} 3. d5 {[%clk 0:02:59]}  b5 {[%clk 0:02:55]} 4. Nd2 {[%clk 0:02:58]}  bxc4 {[%clk 0:02:51]} 5. e4 {[%clk 0:02:58]}  c3 {[%clk 0:02:52]} 6. bxc3 {[%clk 0:02:58]}  d6 {[%clk 0:02:52]} 7. f4 {[%clk 0:02:56]}  g6 {[%clk 0:02:52]} 8. Ngf3 {[%clk 0:02:56]}  Bg7 {[%clk 0:02:52]} 9. Bd3 {[%clk 0:02:56]}  O-O {[%clk 0:02:52]} 10. O-O {[%clk 0:02:45]}  Ba6 {[%clk 0:02:52]} 11. Qe2 {[%clk 0:02:34]}  Bxd3 {[%clk 0:02:48]} 12. Qxd3 {[%clk 0:02:35]}  a5 {[%clk 0:02:47]} 13. Rb1 {[%clk 0:02:35]}  a4 {[%clk 0:02:47]} 14. c4 {[%clk 0:02:34]}  Na6 {[%clk 0:02:47]} 15. a3 {[%clk 0:02:31]}  Qc7 {[%clk 0:02:47]} 16. e5 {[%clk 0:02:27]}  Nd7 {[%clk 0:02:46]} 17. Bb2 {[%clk 0:02:21]}  dxe5 {[%clk 0:02:39]} 18. Ng5 {[%clk 0:01:53]}  exf4 {[%clk 0:02:26]} 19. Bxg7 {[%clk 0:01:34]}  Kxg7 {[%clk 0:02:27]} 20. Qc3+ {[%clk 0:01:33]}  Nf6 {[%clk 0:02:18]} 21. Nde4 {[%clk 0:01:29]}  h6 {[%clk 0:02:07]} 22. d6 {[%clk 0:01:29]}  Qd8 {[%clk 0:02:06]} 23. Nxf6 {[%clk 0:00:52]}  exf6 {[%clk 0:02:05]} 24. Ne4 {[%clk 0:00:51]}  g5 {[%clk 0:01:59]} 25. Rb7 {[%clk 0:00:45]}  Re8 {[%clk 0:01:56]} 26. Rd7 {[%clk 0:00:27]}  Qxd7 {[%clk 0:01:28]} 27. Nxf6 {[%clk 0:00:19]}  Qf5 {[%clk 0:01:08]} 28. Nh5+ {[%clk 0:00:19]}  Kg6 {[%clk 0:01:03]} 29. Qg7+ {[%clk 0:00:17]}  Kxh5 {[%clk 0:01:03]} 30. h3 {[%clk 0:00:13]}  Re3 {[%clk 0:01:01]} 31. g4+ {[%clk 0:00:13]}  Qxg4+ {[%clk 0:00:47]} 32. hxg4+ {[%clk 0:00:13]}  Kxg4 {[%clk 0:00:48]} 33. Qxh6 {[%clk 0:00:11]}  Rb8 {[%clk 0:00:48]} 34. Qh1 {[%clk 0:00:09]}  Rb2 {[%clk 0:00:46]} 35. Rf2 {[%clk 0:00:09]}  Re1+ {[%clk 0:00:46]} 36. Rf1 {[%clk 0:00:09]}  Re3 {[%clk 0:00:46]} 37. Qh7 {[%clk 0:00:08]}  Rg3+ {[%clk 0:00:46]} 38. Kh1 {[%clk 0:00:09]}  Rh3+ {[%clk 0:00:45]} 39. Qxh3+ {[%clk 0:00:09]}  Kxh3 {[%clk 0:00:46]} 0-1


[Site "https://www.chess.com"]

[Event "Titled Tuesday Blitz March 28 Late 2023"]
[White "Perske, Thore"]
[Black "Zampronha, Wladimir Camilo"]
[WhiteFideId "12902195"]
[BlackFideId "2103087"]
[WhiteElo "2336"]
[BlackElo "2176"]
[Result "1-0"]
[Round "01"]
[TimeControl "180+2"]
[Date "2023.03.28"]
[WhiteClock "0:00:09"]
[BlackClock "0:00:06"]

1. d4 {[%clk 0:03:00]}  Nf6 {[%clk 0:02:58]} 2. g3 {[%clk 0:03:01]}  e6 {[%clk 0:02:58]} 3. Bg2 {[%clk 0:03:01]}  d5 {[%clk 0:02:57]} 4. Nf3 {[%clk 0:03:01]}  Be7 {[%clk 0:02:57]} 5. O-O {[%clk 0:03:02]}  O-O {[%clk 0:02:57]} 6. c4 {[%clk 0:03:03]}  dxc4 {[%clk 0:02:57]} 7. Qc2 {[%clk 0:03:03]}  a6 {[%clk 0:02:57]} 8. a4 {[%clk 0:03:04]}  Bd7 {[%clk 0:02:54]} 9. Rd1 {[%clk 0:03:04]}  Bc6 {[%clk 0:02:52]} 10. Nc3 {[%clk 0:03:05]}  b5 {[%clk 0:02:38]} 11. axb5 {[%clk 0:02:58]}  axb5 {[%clk 0:02:39]} 12. Rxa8 {[%clk 0:02:56]}  Bxa8 {[%clk 0:02:39]} 13. Nxb5 {[%clk 0:02:55]}  Be4 {[%clk 0:02:21]} 14. Qxc4 {[%clk 0:02:53]}  c5 {[%clk 0:02:22]} 15. Nc3 {[%clk 0:02:52]}  Bxf3 {[%clk 0:02:10]} 16. Bxf3 {[%clk 0:02:45]}  cxd4 {[%clk 0:02:10]} 17. Rxd4 {[%clk 0:02:41]}  Qb6 {[%clk 0:02:06]} 18. Rd1 {[%clk 0:02:11]}  Nbd7 {[%clk 0:02:04]} 19. Na4 {[%clk 0:02:04]}  Qa5 {[%clk 0:01:52]} 20. b3 {[%clk 0:02:01]}  Ne5 {[%clk 0:01:48]} 21. Qc3 {[%clk 0:01:56]}  Nxf3+ {[%clk 0:01:47]} 22. Qxf3 {[%clk 0:01:56]}  Nd5 {[%clk 0:01:31]} 23. Bb2 {[%clk 0:01:53]}  Bf6 {[%clk 0:01:30]} 24. Bxf6 {[%clk 0:01:53]}  Nxf6 {[%clk 0:01:31]} 25. Qc3 {[%clk 0:01:49]}  Qb5 {[%clk 0:01:30]} 26. e3 {[%clk 0:01:44]}  Ng4 {[%clk 0:01:26]} 27. Qb4 {[%clk 0:01:39]}  Qh5 {[%clk 0:01:25]} 28. h4 {[%clk 0:00:57]}  Nxe3 {[%clk 0:01:26]} 29. Rd3 {[%clk 0:00:52]}  Nd5 {[%clk 0:01:21]} 30. Qc4 {[%clk 0:00:47]}  Qe2 {[%clk 0:01:16]} 31. Nc3 {[%clk 0:00:41]}  Nxc3 {[%clk 0:00:58]} 32. Rxc3 {[%clk 0:00:40]}  Qe1+ {[%clk 0:00:51]} 33. Kg2 {[%clk 0:00:40]}  h6 {[%clk 0:00:49]} 34. b4 {[%clk 0:00:39]}  Rb8 {[%clk 0:00:47]} 35. Rb3 {[%clk 0:00:34]}  Rd8 {[%clk 0:00:31]} 36. Qc3 {[%clk 0:00:33]}  Qe2 {[%clk 0:00:22]} 37. Qf3 {[%clk 0:00:30]}  Qb5 {[%clk 0:00:18]} 38. Qe4 {[%clk 0:00:26]}  Rb8 {[%clk 0:00:18]} 39. Kg1 {[%clk 0:00:23]}  Rb7 {[%clk 0:00:18]} 40. Rc3 {[%clk 0:00:20]}  Rb8 {[%clk 0:00:13]} 41. Rc5 {[%clk 0:00:18]}  Qb6 {[%clk 0:00:11]} 42. Rc6 {[%clk 0:00:16]}  Qb5 {[%clk 0:00:11]} 43. Rc7 {[%clk 0:00:13]}  Qb6 {[%clk 0:00:06]} 44. Rd7 {[%clk 0:00:10]}  Qb5 {[%clk 0:00:06]} 45. Re7 {[%clk 0:00:09]}  Qxb4 {[%clk 0:00:05]} 46. Re8+ {[%clk 0:00:08]}  Rxe8 {[%clk 0:00:06]} 47. Qxb4 {[%clk 0:00:09]}  Rf8 {[%clk 0:00:06]} 48. Qe4 {[%clk 0:00:09]}  g6 {[%clk 0:00:07]} 49. g4 {[%clk 0:00:09]}  Re8 {[%clk 0:00:06]} 50. Qe5 {[%clk 0:00:09]}  Rf8 {[%clk 0:00:07]} 51. Qf6 {[%clk 0:00:09]}  Re8 {[%clk 0:00:07]} 52. h5 {[%clk 0:00:09]}  g5 {[%clk 0:00:06]} 53. Qxh6 {[%clk 0:00:09]} 1-0


[Site "https://www.chess.com"]

[Event "Titled Tuesday Blitz March 28 Late 2023"]
[White "Itkis, Boris"]
[Black "Piesik, Piotr"]
[WhiteFideId "1209167"]
[BlackFideId "1136194"]
[WhiteElo "2216"]
[BlackElo "2311"]
[Result "1/2-1/2"]
[Round "01"]
[TimeControl "180+2"]
[Date "2023.03.28"]
[WhiteClock "0:00:11"]
[BlackClock "0:00:11"]

1. c4 {[%clk 0:03:00]}  g6 {[%clk 0:02:56]} 2. Nf3 {[%clk 0:02:59]}  Bg7 {[%clk 0:02:56]} 3. d4 {[%clk 0:02:59]}  d6 {[%clk 0:02:56]} 4. g3 {[%clk 0:02:59]}  Nc6 {[%clk 0:02:53]} 5. d5 {[%clk 0:02:47]}  Ne5 {[%clk 0:02:53]} 6. Nxe5 {[%clk 0:02:45]}  Bxe5 {[%clk 0:02:54]} 7. Bg2 {[%clk 0:02:45]}  Bg7 {[%clk 0:02:50]} 8. O-O {[%clk 0:02:45]}  Nf6 {[%clk 0:02:50]} 9. Nc3 {[%clk 0:02:40]}  O-O {[%clk 0:02:50]} 10. e4 {[%clk 0:02:38]}  c6 {[%clk 0:02:48]} 11. Be3 {[%clk 0:02:36]}  Ng4 {[%clk 0:02:46]} 12. Bd4 {[%clk 0:02:35]}  Ne5 {[%clk 0:02:43]} 13. f4 {[%clk 0:02:27]}  Bg4 {[%clk 0:02:33]} 14. Ne2 {[%clk 0:02:12]}  Bxe2 {[%clk 0:02:05]} 15. Qxe2 {[%clk 0:02:13]}  Nf3+ {[%clk 0:02:05]} 16. Bxf3 {[%clk 0:02:04]}  Bxd4+ {[%clk 0:02:06]} 17. Kg2 {[%clk 0:02:04]}  Qb6 {[%clk 0:02:04]} 18. Rab1 {[%clk 0:02:03]}  Rfe8 {[%clk 0:02:01]} 19. e5 {[%clk 0:02:01]}  e6 {[%clk 0:01:58]} 20. dxc6 {[%clk 0:02:00]}  bxc6 {[%clk 0:01:55]} 21. exd6 {[%clk 0:02:01]}  Rad8 {[%clk 0:01:52]} 22. b4 {[%clk 0:02:00]}  c5 {[%clk 0:01:51]} 23. bxc5 {[%clk 0:01:35]}  Qxc5 {[%clk 0:01:52]} 24. Rb5 {[%clk 0:01:35]}  Qxd6 {[%clk 0:01:52]} 25. Rd1 {[%clk 0:01:36]}  Qa6 {[%clk 0:01:42]} 26. Qc2 {[%clk 0:01:31]}  Bb6 {[%clk 0:01:35]} 27. Rbb1 {[%clk 0:01:19]}  Qa3 {[%clk 0:01:30]} 28. Rb3 {[%clk 0:01:15]}  Qc5 {[%clk 0:01:28]} 29. Rbd3 {[%clk 0:01:14]}  Rxd3 {[%clk 0:01:27]} 30. Rxd3 {[%clk 0:01:15]}  Rc8 {[%clk 0:01:25]} 31. Be2 {[%clk 0:01:12]}  Qf2+ {[%clk 0:01:22]} 32. Kh3 {[%clk 0:01:11]}  h5 {[%clk 0:01:17]} 33. Rf3 {[%clk 0:01:04]}  Qg1 {[%clk 0:01:15]} 34. Bd3 {[%clk 0:00:57]}  Kg7 {[%clk 0:01:07]} 35. f5 {[%clk 0:00:55]}  exf5 {[%clk 0:01:06]} 36. Bxf5 {[%clk 0:00:56]}  Rd8 {[%clk 0:00:50]} 37. Be4 {[%clk 0:00:30]}  Rd7 {[%clk 0:00:36]} 38. Bd5 {[%clk 0:00:29]}  Qd4 {[%clk 0:00:33]} 39. Qc3 {[%clk 0:00:23]}  f5 {[%clk 0:00:29]} 40. Qxd4+ {[%clk 0:00:23]}  Bxd4 {[%clk 0:00:30]} 41. Kg2 {[%clk 0:00:23]}  Re7 {[%clk 0:00:27]} 42. Rb3 {[%clk 0:00:22]}  Re2+ {[%clk 0:00:24]} 43. Kh1 {[%clk 0:00:18]}  Rxa2 {[%clk 0:00:17]} 44. Rb7+ {[%clk 0:00:18]}  Kf6 {[%clk 0:00:18]} 45. Rd7 {[%clk 0:00:18]}  Kg5 {[%clk 0:00:15]} 46. Bf3 {[%clk 0:00:15]}  Rf2 {[%clk 0:00:13]} 47. Rxd4 {[%clk 0:00:11]}  Rxf3 {[%clk 0:00:14]} 48. Kg2 {[%clk 0:00:11]}  Rc3 {[%clk 0:00:12]} 49. h4+ {[%clk 0:00:09]}  Kf6 {[%clk 0:00:11]} 50. Rd6+ {[%clk 0:00:09]}  Ke5 {[%clk 0:00:11]} 51. Rd5+ {[%clk 0:00:10]}  Ke6 {[%clk 0:00:10]} 52. Ra5 {[%clk 0:00:10]}  Rxc4 {[%clk 0:00:10]} 53. Ra6+ {[%clk 0:00:11]}  Ke5 {[%clk 0:00:08]} 54. Rxg6 {[%clk 0:00:11]}  a5 {[%clk 0:00:08]} 55. Ra6 {[%clk 0:00:11]}  a4 {[%clk 0:00:08]} 56. Ra5+ {[%clk 0:00:11]}  Ke4 {[%clk 0:00:09]} 57. Kh3 {[%clk 0:00:11]}  Rb4 {[%clk 0:00:09]} 58. Kg2 {[%clk 0:00:10]}  Rb2+ {[%clk 0:00:08]} 59. Kh3 {[%clk 0:00:10]}  Ra2 {[%clk 0:00:09]} 60. Ra8 {[%clk 0:00:08]}  a3 {[%clk 0:00:10]} 61. Ra4+ {[%clk 0:00:06]}  Ke3 {[%clk 0:00:10]} 62. Ra5 {[%clk 0:00:06]}  Ra1 {[%clk 0:00:11]} 63. Kg2 {[%clk 0:00:05]}  a2 {[%clk 0:00:09]} 64. Ra3+ {[%clk 0:00:05]}  Kd4 {[%clk 0:00:09]} 65. Ra4+ {[%clk 0:00:06]}  Kc3 {[%clk 0:00:09]} 66. Ra8 {[%clk 0:00:04]}  Kb4 {[%clk 0:00:09]} 67. Rb8+ {[%clk 0:00:05]}  Kc4 {[%clk 0:00:09]} 68. Ra8 {[%clk 0:00:06]}  Kd5 {[%clk 0:00:09]} 69. Ra5+ {[%clk 0:00:06]}  Ke4 {[%clk 0:00:09]} 70. Ra8 {[%clk 0:00:07]}  Ke3 {[%clk 0:00:08]} 71. Ra3+ {[%clk 0:00:07]}  Ke2 {[%clk 0:00:09]} 72. Ra8 {[%clk 0:00:07]}  Kd2 {[%clk 0:00:09]} 73. Ra7 {[%clk 0:00:07]}  Kc2 {[%clk 0:00:08]} 74. Ra8 {[%clk 0:00:07]}  Kb2 {[%clk 0:00:09]} 75. Rb8+ {[%clk 0:00:07]}  Kc2 {[%clk 0:00:09]} 76. Ra8 {[%clk 0:00:08]}  Kd2 {[%clk 0:00:09]} 77. Rd8+ {[%clk 0:00:08]}  Ke2 {[%clk 0:00:10]} 78. Ra8 {[%clk 0:00:09]}  Rd1 {[%clk 0:00:07]} 79. Rxa2+ {[%clk 0:00:08]}  Ke3 {[%clk 0:00:08]} 80. Ra3+ {[%clk 0:00:09]}  Ke4 {[%clk 0:00:08]} 81. Ra4+ {[%clk 0:00:09]}  Rd4 {[%clk 0:00:08]} 82. Rxd4+ {[%clk 0:00:09]}  Kxd4 {[%clk 0:00:09]} 83. Kf3 {[%clk 0:00:09]}  Ke5 {[%clk 0:00:10]} 84. Ke3 {[%clk 0:00:09]}  Ke6 {[%clk 0:00:10]} 85. Kf4 {[%clk 0:00:10]}  Kf6 {[%clk 0:00:10]} 86. Kf3 {[%clk 0:00:10]}  Ke5 {[%clk 0:00:10]} 87. Ke3 {[%clk 0:00:11]}  Ke6 {[%clk 0:00:11]} 88. Kf3 {[%clk 0:00:11]}  Ke5 {[%clk 0:00:11]} 1/2-1/2


[Site "https://www.chess.com"]

[Event "Titled Tuesday Blitz March 28 Late 2023"]
[White "Domingo Nunez, Alejandro"]
[Black "Zanette, Edgard Vinicius"]
[WhiteFideId "22245561"]
[BlackFideId "2109263"]
[WhiteElo "2230"]
[BlackElo "2211"]
[Result "1-0"]
[Round "01"]
[TimeControl "180+2"]
[Date "2023.03.28"]
[WhiteClock "0:00:43"]
[BlackClock "0:00:25"]

1. e4 {[%clk 0:03:00]}  c5 {[%clk 0:02:55]} 2. d4 {[%clk 0:03:00]}  cxd4 {[%clk 0:02:55]} 3. c3 {[%clk 0:03:01]}  g6 {[%clk 0:02:55]} 4. Nf3 {[%clk 0:03:01]}  dxc3 {[%clk 0:02:50]} 5. Nxc3 {[%clk 0:03:01]}  d6 {[%clk 0:02:45]} 6. Bc4 {[%clk 0:02:59]}  Bg7 {[%clk 0:02:45]} 7. Qb3 {[%clk 0:02:57]}  e6 {[%clk 0:02:44]} 8. Bf4 {[%clk 0:02:53]}  a6 {[%clk 0:02:30]} 9. Rd1 {[%clk 0:02:35]}  b5 {[%clk 0:02:21]} 10. Be2 {[%clk 0:02:07]}  Bf8 {[%clk 0:02:16]} 11. Bxd6 {[%clk 0:01:45]}  Bxd6 {[%clk 0:02:14]} 12. e5 {[%clk 0:01:46]}  Ra7 {[%clk 0:02:01]} 13. O-O {[%clk 0:01:30]}  Rd7 {[%clk 0:01:58]} 14. exd6 {[%clk 0:01:30]}  Rxd6 {[%clk 0:01:16]} 15. Ne4 {[%clk 0:01:15]}  Rd5 {[%clk 0:01:12]} 16. Qc3 {[%clk 0:01:03]}  f6 {[%clk 0:01:09]} 17. Rxd5 {[%clk 0:01:00]}  exd5 {[%clk 0:01:06]} 18. Rd1 {[%clk 0:00:56]}  Bb7 {[%clk 0:00:43]} 19. Qc5 {[%clk 0:00:49]}  Ba8 {[%clk 0:00:28]} 20. Nd6+ {[%clk 0:00:49]}  Kd7 {[%clk 0:00:28]} 21. Nf7 {[%clk 0:00:43]}  Qe7 {[%clk 0:00:25]} 22. Qa7+ {[%clk 0:00:43]} 1-0


[Site "https://www.chess.com"]

[Event "Titled Tuesday Blitz March 28 Late 2023"]
[White "Thomforde-Toates, Noah"]
[Black "krucki03"]
[WhiteFideId "30951992"]
[WhiteElo "2655"]
[BlackElo "2315"]
[Result "1-0"]
[Round "01"]
[TimeControl "180+2"]
[Date "2023.03.28"]
[WhiteClock "0:00:33"]
[BlackClock "0:00:03"]

1. e4 {[%clk 0:02:57]}  c5 {[%clk 0:02:59]} 2. Nf3 {[%clk 0:02:54]}  d6 {[%clk 0:02:59]} 3. Nc3 {[%clk 0:02:48]}  Nf6 {[%clk 0:02:59]} 4. e5 {[%clk 0:02:45]}  dxe5 {[%clk 0:02:59]} 5. Nxe5 {[%clk 0:02:43]}  Bd7 {[%clk 0:02:59]} 6. Qf3 {[%clk 0:02:41]}  Nc6 {[%clk 0:02:58]} 7. Nxd7 {[%clk 0:02:41]}  Qxd7 {[%clk 0:02:59]} 8. Bb5 {[%clk 0:02:40]}  Rc8 {[%clk 0:02:58]} 9. O-O {[%clk 0:02:39]}  a6 {[%clk 0:02:57]} 10. Bxc6 {[%clk 0:02:39]}  Qxc6 {[%clk 0:02:58]} 11. Qxc6+ {[%clk 0:02:39]}  Rxc6 {[%clk 0:02:59]} 12. d3 {[%clk 0:02:39]}  e6 {[%clk 0:02:59]} 13. Re1 {[%clk 0:02:38]}  Be7 {[%clk 0:02:59]} 14. a4 {[%clk 0:02:38]}  O-O {[%clk 0:02:59]} 15. Bg5 {[%clk 0:02:38]}  h6 {[%clk 0:02:58]} 16. Bh4 {[%clk 0:02:37]}  Nd5 {[%clk 0:02:44]} 17. Nxd5 {[%clk 0:02:33]}  Bxh4 {[%clk 0:02:43]} 18. Ne3 {[%clk 0:02:31]}  Bf6 {[%clk 0:02:42]} 19. Nc4 {[%clk 0:02:31]}  b5 {[%clk 0:02:39]} 20. axb5 {[%clk 0:02:30]}  axb5 {[%clk 0:02:39]} 21. Ne5 {[%clk 0:02:30]}  Bxe5 {[%clk 0:02:18]} 22. Rxe5 {[%clk 0:02:27]}  Rb8 {[%clk 0:02:19]} 23. Kf1 {[%clk 0:02:23]}  c4 {[%clk 0:02:17]} 24. d4 {[%clk 0:02:02]}  c3 {[%clk 0:01:50]} 25. b3 {[%clk 0:01:57]}  Rd8 {[%clk 0:01:50]} 26. Rd1 {[%clk 0:01:44]}  Rcd6 {[%clk 0:01:50]} 27. Rxb5 {[%clk 0:01:43]}  Rxd4 {[%clk 0:01:50]} 28. Rxd4 {[%clk 0:01:43]}  Rxd4 {[%clk 0:01:51]} 29. Rc5 {[%clk 0:01:40]}  Rd1+ {[%clk 0:01:50]} 30. Ke2 {[%clk 0:01:40]}  Rd2+ {[%clk 0:01:51]} 31. Ke3 {[%clk 0:01:41]}  Rxc2 {[%clk 0:01:52]} 32. b4 {[%clk 0:01:42]}  Kf8 {[%clk 0:01:14]} 33. b5 {[%clk 0:01:34]}  Ke7 {[%clk 0:01:13]} 34. b6 {[%clk 0:01:33]}  Rb2 {[%clk 0:01:13]} 35. Rc6 {[%clk 0:01:27]}  g5 {[%clk 0:00:23]} 36. Rc7+ {[%clk 0:01:22]}  Kd6 {[%clk 0:00:22]} 37. Rxf7 {[%clk 0:01:21]}  Rxb6 {[%clk 0:00:22]} 38. Kd3 {[%clk 0:01:22]}  Rc6 {[%clk 0:00:19]} 39. Kc2 {[%clk 0:01:22]}  Kd5 {[%clk 0:00:18]} 40. Rf6 {[%clk 0:01:21]}  h5 {[%clk 0:00:16]} 41. Rg6 {[%clk 0:01:21]}  Kc4 {[%clk 0:00:14]} 42. Rxg5 {[%clk 0:01:21]}  Rd6 {[%clk 0:00:14]} 43. Rxh5 {[%clk 0:01:15]}  Rd2+ {[%clk 0:00:15]} 44. Kc1 {[%clk 0:01:16]}  Rxf2 {[%clk 0:00:15]} 45. Rg5 {[%clk 0:01:14]}  Kb3 {[%clk 0:00:12]} 46. Rb5+ {[%clk 0:01:07]}  Kc4 {[%clk 0:00:12]} 47. Rg5 {[%clk 0:01:02]}  Kd4 {[%clk 0:00:13]} 48. h4 {[%clk 0:00:57]}  e5 {[%clk 0:00:13]} 49. h5 {[%clk 0:00:54]}  e4 {[%clk 0:00:13]} 50. h6 {[%clk 0:00:54]}  Kd3 {[%clk 0:00:11]} 51. Rd5+ {[%clk 0:00:54]}  Kc4 {[%clk 0:00:11]} 52. h7 {[%clk 0:00:52]}  Rf8 {[%clk 0:00:09]} 53. Rd7 {[%clk 0:00:45]}  Kb3 {[%clk 0:00:08]} 54. Rb7+ {[%clk 0:00:45]}  Kc4 {[%clk 0:00:08]} 55. g4 {[%clk 0:00:43]}  Rf1+ {[%clk 0:00:05]} 56. Kc2 {[%clk 0:00:43]}  Rf2+ {[%clk 0:00:06]} 57. Kd1 {[%clk 0:00:43]}  c2+ {[%clk 0:00:02]} 58. Kc1 {[%clk 0:00:42]}  Rh2 {[%clk 0:00:02]} 59. g5 {[%clk 0:00:39]}  Kd3 {[%clk 0:00:01]} 60. Rd7+ {[%clk 0:00:39]}  Kc3 {[%clk 0:00:01]} 61. Rc7+ {[%clk 0:00:33]}  Kd3 {[%clk 0:00:01]} 62. g6 {[%clk 0:00:33]}  Rh1+ {[%clk 0:00:02]} 63. Kb2 {[%clk 0:00:33]}  Rb1+ {[%clk 0:00:02]} 64. Ka2 {[%clk 0:00:34]}  c1=Q {[%clk 0:00:02]} 65. Rxc1 {[%clk 0:00:33]}  Rxc1 {[%clk 0:00:03]} 66. h8=Q {[%clk 0:00:33]} 1-0


[Site "https://www.chess.com"]